[Event "European Corporate Championship 2022"]
[Site "Rotterdam"]
[Date "2022.06.19"]
[Round "6.6"]
[White "Heer, Stephan"]
[Black "Celinski, Kamil"]
[Result "1-0"]
[ECO "A07"]
[WhiteElo "2047"]
[BlackElo "1907"]
[Annotator "TA"]
[PlyCount "79"]
[EventDate "2022.06.18"]
[EventType "team-tourn"]
[EventCountry "NED"]
[SourceTitle "playchess.com"]
[Source "ChessBase"]
[SourceQuality "1"]
[TimeControl "900+5"]

{[%evp 11,79,-16,22,6,14,15,17,11,20,8,10,-2,31,4,21,0,25,0,7,-15,35,66,54,31,139,59,54,54,190,195,199,154,127,98,78,81,126,123,131,79,86,75,86,87,237,51,153,131,533,522,531,534,657,657,755,681,743,741,866,859,935,932,901,912,913,872,1090,1026,1697,1617]} 1. Nf3 {[%emt 0:00:02]} Nf6 {[%emt 0:00:01]} 2. g3 {[%emt 0:00:00]} d5 {[%emt 0:00:02]} 3. Bg2 {[%emt 0:00:01]} e6 {[%emt 0:00:01]} 4. d3 {[%emt 0:00:01]} Be7 {[%emt 0:00:02]} 5. O-O {[%emt 0:00:01]} O-O {[%emt 0:00:02]} 6. Nbd2 {[%emt 0:00:01]} Nc6 {[%emt 0:00:28]} 7. c3 {[%emt 0:00:12] A07: Réti Opening: New York and Capablanca Systems.} b6 {[%emt 0:00:06]} 8. e4 {[%emt 0:00:01]} Bb7 {[%emt 0:00:17] [#]} 9. e5 $146 {[%emt 0:00:09] The position is equal.} ({Predecessor:} 9. Re1 dxe4 10. Nxe4 Nxe4 11. dxe4 Qxd1 12. Rxd1 e5 13. Be3 Rad8 14. Bf1 Rxd1 15. Rxd1 Rd8 16. Rxd8+ Bxd8 17. Nd2 Kf8 18. f3 Be7 19. Kf2 Bc8 20. Bb5 Nd8 {½-½ (20) Ross,S (1737)-Hoffmann,A (1814) Mittelfranken 2014}) 9... Nd7 {[%emt 0:00:05]} 10. Re1 {[%emt 0:00:17]} a5 {[%emt 0:00:18]} 11. d4 {[%emt 0:00:10]} a4 {[%emt 0:00:31]} 12. Nf1 {[%emt 0:15:10]} b5 {[%emt 0:00:17]} 13. Ne3 {[%emt 0:00:00]} Na5 {[%emt 0:00:43]} 14. h4 {[%emt 0:00:00]} c5 {[%emt 0:00:26]} 15. Ng5 {[%emt 0:00:00]} h6 {[%emt 0:00:21]} (15... Nc6 $11) 16. Nh3 $14 {[%emt 0:00:00]} cxd4 {[%emt 0:01:35]} 17. cxd4 {[%emt 0:00:00]} (17. Ng4 $5 {[%cal Rg4h6]}) 17... Nc4 {[%emt 0:00:21] [#]} (17... Bb4 $14) 18. Qg4 {[%emt 0:00:00]} ({Better is} 18. Ng4 $1 $16 {[%cal Rg4h6]}) 18... Kh8 {[%emt 0:01:03]} 19. Qh5 {[%emt 0:00:00]} f5 {[%emt 0:03:27] Prevents Ng4.} (19... Qe8 $14) 20. Nf4 $18 {[%emt 0:00:00]} Qe8 {[%emt 0:01:54]} 21. Qg6 {[%emt 0:00:00]} ({Less strong is} 21. Qxe8 Rfxe8 22. Ng6+ (22. Nxe6 Bb4 $14) (22. Nxc4 bxc4 23. Ng6+ Kg8 $11) 22... Kg8 $14) 21... Ra6 {[%emt 0:01:38]} 22. Rd1 {[%emt 0:00:00][%cal Be1d1,Bd1c1,Bc1c6][%mdl 32]} Kg8 {[%emt 0:00:43]} 23. Rb1 {[%emt 0:00:00]} Qxg6 {[%emt 0:01:06]} 24. Nxg6 {[%emt 0:00:00]} Re8 {[%emt 0:00:01]} 25. b3 {[%emt 0:00:00]} ({White should play} 25. Nc2) 25... Nxe3 $16 {[%emt 0:00:18]} 26. Bxe3 {[%emt 0:00:00]} Bc6 {[%emt 0:00:46]} 27. Rdc1 {[%emt 0:00:00] White is more active.} Nf8 {[%emt 0:00:31]} (27... Ba3 $16 {keeps fighting.}) 28. Nf4 $2 {[%emt 0:00:00] [#]} (28. Nxe7+ $18 Rxe7 29. bxa4) 28... Rb8 {[%emt 0:00:11]} (28... axb3 $14 29. axb3 (29. Rxb3 Bd7 $14) 29... Rc8) 29. bxa4 {[%emt 0:00:00][%cal Oc1c6] Rxc6! is the strong threat.} b4 $2 {[%emt 0:00:09][%mdl 8192]} (29... Bd7 $16 {is tougher.}) 30. Bf1 $18 {[%emt 0:00:00] White is clearly winning.} Rxa4 {[%emt 0:00:05]} 31. Rxc6 {[%emt 0:00:00]} Rxa2 {[%emt 0:00:01]} 32. Nxe6 {[%emt 0:00:00]} b3 {[%emt 0:00:02]} 33. Nxf8 {[%emt 0:00:11]} Bxf8 {[%emt 0:00:01]} 34. Bd3 {[%emt 0:00:04]} Ba3 {[%emt 0:00:09]} 35. Bxf5 {[%emt 0:00:09]} b2 {[%emt 0:00:01]} 36. Be6+ {[%emt 0:00:11]} Kf8 {[%emt 0:00:06]} 37. Bxd5 {[%emt 0:00:01]} Ra1 {[%emt 0:00:04]} 38. Be4 {[%emt 0:00:01]} Ke7 {[%emt 0:00:13]} 39. d5 {[%emt 0:00:07]} Rb4 {[%emt 0:00:02]} 40. Bc5+ {[%emt 0:00:09] Weighted Error Value: White=0.25 (precise) /Black=0.59} 1-0

[Event "European Corporate Championship 2022"]
[Site "Rotterdam"]
[Date "2022.06.19"]
[Round "6.7"]
[White "Wisniewski, Jacek"]
[Black "Liefrink, Feike"]
[Result "1/2-1/2"]
[ECO "C67"]
[WhiteElo "1850"]
[BlackElo "1927"]
[Annotator "TA"]
[PlyCount "93"]
[EventDate "2022.06.18"]
[EventType "team-tourn"]
[EventCountry "NED"]
[SourceTitle "playchess.com"]
[Source "ChessBase"]
[SourceQuality "1"]
[TimeControl "900+5"]

{[%evp 13,93,0,0,0,0,0,0,2,2,0,24,0,0,0,0,0,20,21,31,28,37,22,27,23,32,35,27,28,45,24,36,38,39,43,50,45,52,32,31,36,39,19,40,26,27,20,40,43,37,31,36,20,37,35,53,56,56,56,57,39,41,0,0,0,14,7,6,0,5,0,9,9,9,16,57,50,53,54,37,37,59,26]} 1. e4 {[%emt 0:00:02]} e5 {[%emt 0:00:01]} 2. Nf3 {[%emt 0:00:03]} Nc6 {[%emt 0:00:02]} 3. Bb5 {[%emt 0:00:10]} Nf6 {[%emt 0:00:03]} 4. O-O {[%emt 0:00:17]} Nxe4 {[%emt 0:00:10]} 5. Re1 {[%emt 0:00:11]} Nd6 {[%emt 0:00:05]} 6. Bxc6 {[%emt 0:00:10]} dxc6 {[%emt 0:00:09]} 7. Nxe5 {[%emt 0:00:10]} Be7 {[%emt 0:00:12]} 8. d3 {[%emt 0:00:51] C67: Ruy Lopez: Berlin Defence: 4 0-0 Nxe4.} O-O {[%emt 0:00:05]} 9. Nc3 {[%emt 0:00:09]} Bf6 {[%emt 0:00:19] [#]} 10. Ng4 $146 {[%emt 0:00:57] The position is equal.} ({Predecessor:} 10. Bf4 Re8 11. Qd2 a5 12. Nf3 Rxe1+ 13. Rxe1 Be6 14. Bg5 a4 15. a3 h6 16. Bxf6 Qxf6 {1-0 (41) Vojtek,P (1511)-Toman,J (1717) Ceske Budejovice 2021}) 10... Bxg4 {[%emt 0:00:29]} 11. Qxg4 {[%emt 0:00:05]} Qc8 {[%emt 0:00:22]} 12. Qf3 {[%emt 0:02:12]} Qd7 {[%emt 0:00:25]} 13. Bd2 {[%emt 0:00:04]} Rfe8 {[%emt 0:00:05]} 14. h3 {[%emt 0:02:05]} Rxe1+ {[%emt 0:00:34]} 15. Rxe1 {[%emt 0:00:02]} Re8 {[%emt 0:00:02]} 16. Rxe8+ {[%emt 0:00:52]} Qxe8 {[%emt 0:00:04]} 17. Qe3 {[%emt 0:00:09]} b6 {[%emt 0:00:41]} 18. b3 {[%emt 0:01:04]} Qd7 {[%emt 0:01:19]} 19. Ne4 {[%emt 0:00:21]} Be7 {[%emt 0:00:38]} 20. Bc3 {[%emt 0:00:48]} Qe6 {[%emt 0:03:37]} 21. Qg3 {[%emt 0:00:42][%csl Gc3][%cal Rg3g7] [#]} Bf8 {[%emt 0:01:58]} 22. Nf6+ {[%emt 0:02:40][%cal Be4f6,Bf6h5,Bh5f4,Bf4e2,Be2d4,Bd4c6,Bc6e5][%mdl 32]} Kh8 {[%emt 0:00:02]} 23. Nh5 {[%emt 0:00:08][%cal Rc3g7]} Qg6 {[%emt 0:01:10]} 24. Qf3 {[%emt 0:00:23]} Kg8 {[%emt 0:00:53]} 25. Nf4 {[%emt 0:00:02]} (25. g4 {feels hotter.} Nb5 26. Bb2 c5 27. Qd5) 25... Qf5 {[%emt 0:00:08]} 26. Qe3 {[%emt 0:00:23]} Qd7 {[%emt 0:01:42]} 27. Ne2 {[%emt 0:00:11]} Qe7 {[%emt 0:00:53]} 28. Qf3 {[%emt 0:00:13]} Qd7 {[%emt 0:00:27]} 29. Nd4 {[%emt 0:00:05]} c5 {[%emt 0:00:06]} 30. Nc6 {[%emt 0:00:38]} a5 {[%emt 0:00:19]} 31. Ne5 {[%emt 0:00:08]} Qe6 {[%emt 0:00:21]} 32. a4 {[%emt 0:00:09]} Nf5 {[%emt 0:00:08]} 33. Qe4 {[%emt 0:00:48]} Bd6 {[%emt 0:00:09]} 34. Qa8+ {[%emt 0:00:19]} Bf8 {[%emt 0:00:00]} 35. Qd8 {[%emt 0:00:09]} Qe7 {[%emt 0:00:06]} 36. Qc8 {[%emt 0:00:10]} Nd6 {[%emt 0:00:03]} 37. Qd7 {[%emt 0:00:10]} Qxd7 {[%emt 0:00:03]} 38. Nxd7 {[%emt 0:00:02]} f6 {[%emt 0:00:10]} 39. Nxf8 {[%emt 0:00:08]} Kxf8 $11 {[%emt 0:00:01][%mdl 4096] Endgame KB-KN} 40. Kf1 {[%emt 0:00:01]} Ke7 {[%emt 0:00:01]} 41. Ke2 {[%emt 0:00:02]} Ke6 {[%emt 0:00:00]} 42. g4 {[%emt 0:00:04]} g6 {[%emt 0:00:07]} 43. Ke3 {[%emt 0:00:02]} f5 {[%emt 0:00:05]} 44. f3 {[%emt 0:00:04] White is slightly better.} fxg4 {[%emt 0:00:03]} 45. fxg4 {[%emt 0:00:08]} Nf7 {[%emt 0:00:20]} 46. Kf4 {[%emt 0:00:03]} c6 {[%emt 0:00:10]} 47. h4 {[%emt 0:00:04] Weighted Error Value: White=0.07 (flawless) /Black=0.07 (flawless)} 1/2-1/2

[Event "European Corporate Championship 2022"]
[Site "Rotterdam"]
[Date "2022.06.19"]
[Round "6.9"]
[White "Afek, Yochanan"]
[Black "Nijboer, Friso"]
[Result "0-1"]
[ECO "B07"]
[WhiteElo "2210"]
[BlackElo "2464"]
[Annotator "TA"]
[PlyCount "36"]
[EventDate "2022.06.18"]
[EventType "team-tourn"]
[EventCountry "NED"]
[SourceTitle "playchess.com"]
[Source "ChessBase"]
[SourceQuality "1"]
[TimeControl "900+5"]

{[%evp 9,36,57,70,50,76,47,70,0,33,5,0,-113,-93,-133,-87,-137,-106,-124,-109,-300,-316,-492,-442,-391,-393,-570,-577,-730,-724]} 1. e4 {[%emt 0:00:02]} d6 {[%emt 0:00:02]} 2. d4 {[%emt 0:00:02]} Nf6 {[%emt 0:00:03]} 3. Nc3 {[%emt 0:00:01]} g6 {[%emt 0:00:01]} 4. Bg5 {[%emt 0:00:36]} h6 {[%emt 0:01:51]} 5. Be3 {[%emt 0:00:23]} c6 {[%emt 0:01:12]} 6. f3 {[%emt 0:00:27] B07: Pirc Defence: Miscellaneous Systems.} Nbd7 {[%emt 0:03:04]} 7. Qd2 {[%emt 0:00:50]} Bg7 {[%emt 0:00:25]} 8. O-O-O {[%emt 0:00:13]} (8. a4 $14) 8... b5 {[%emt 0:00:28][%cal Bb7b5,Bb5b4][%mdl 32]} 9. e5 {[%emt 0:00:21]} b4 $1 {[%emt 0:00:02] [#]} 10. Nce2 $146 {[%emt 0:01:43]} (10. exf6 $11 bxc3 11. Qxc3 Nxf6 12. Qxc6+ Bd7 13. Qa6) ({Predecessor:} 10. Ne4 Nd5 11. exd6 f5 12. Nc5 Nxc5 13. dxc5 Qa5 14. Bc4 {0-1 (28) Prieto,E (2064)-Gavrish,L (2158) Barcelona 2016}) 10... Nd5 $17 {[%emt 0:00:04]} 11. exd6 {[%emt 0:01:18]} exd6 {[%emt 0:00:02]} (11... N7b6 $142 {...Nc4 is the strong threat.} 12. Bf2 Nc4 13. d7+ Qxd7) 12. Bf2 {[%emt 0:00:39]} ({White should play} 12. Nf4) 12... Qa5 {[%emt 0:02:23]} 13. Kb1 {[%emt 0:01:01]} Rb8 {[%emt 0:00:01] Strongly threatening ...0-0. Black is more active.} 14. b3 $2 {[%emt 0:01:59]} (14. Re1 $17 {might work better.}) 14... O-O $19 {[%emt 0:00:59]} 15. Qc1 {[%emt 0:01:06]} (15. h4 {was worth a try.} Ba6 16. h5) 15... Re8 {[%emt 0:00:37]} 16. h4 {[%emt 0:00:52]} Ba6 {[%emt 0:00:02] [#] White must now prevent ...Bxe2.} 17. Be1 {[%emt 0:00:27]} (17. Ka1 $142) 17... Ne3 {[%emt 0:00:28]} 18. Nh3 {[%emt 0:00:06]} Nxf1 {[%emt 0:04:51] White got outplayed after the opening.  Weighted Error Value: White=0.80/Black=0.12 (very precise)} 0-1

[Event "European Corporate Championship 2022"]
[Site "Rotterdam"]
[Date "2022.06.19"]
[Round "6.10"]
[White "De Vreugt, Dennis"]
[Black "Theulings, Paul-Peter"]
[Result "1-0"]
[ECO "E06"]
[WhiteElo "2393"]
[BlackElo "2063"]
[Annotator "TA"]
[PlyCount "75"]
[EventDate "2022.06.18"]
[EventType "team-tourn"]
[EventCountry "NED"]
[SourceTitle "playchess.com"]
[Source "ChessBase"]
[SourceQuality "1"]
[TimeControl "900+5"]

{[%evp 11,75,20,15,8,2,-26,0,-11,0,-8,9,7,60,46,70,69,81,59,103,93,158,119,117,121,98,104,94,105,133,133,132,130,196,190,248,248,262,254,257,253,260,253,272,267,256,233,272,262,281,252,268,246,629,656,661,632,581,595,591,548,568,533,524,491,847,739]} 1. d4 {[%emt 0:00:01]} Nf6 {[%emt 0:00:02]} 2. g3 {[%emt 0:00:03]} d5 {[%emt 0:00:05]} 3. Bg2 {[%emt 0:00:01]} e6 {[%emt 0:00:02]} 4. Nf3 {[%emt 0:00:02]} Be7 {[%emt 0:00:01]} 5. c4 {[%emt 0:00:02]} O-O {[%emt 0:00:04]} 6. O-O {[%emt 0:00:07]} b6 {[%emt 0:00:02]} 7. Bf4 {[%emt 0:00:28] E06: Closed Catalan: Early deviations.} Bb7 {[%emt 0:00:03]} 8. Nbd2 {[%emt 0:00:02][%cal Bb1d2,Bd2b3,Bb3d4,Bd4c6][%mdl 32]} Na6 {[%emt 0:00:24] [#]} 9. Rc1 $146 {[%emt 0:00:04] The position is equal.} ({Predecessor:} 9. Ne5 c5 10. Nb3 Rc8 11. Rc1 Nh5 12. Bd2 Bd6 13. e4 Bxe5 14. dxe5 {1-0 (55) Pirozzi,D-Bertinetti,C Argentina 2001}) 9... c5 {[%emt 0:00:04]} 10. Ne5 {[%emt 0:00:15]} cxd4 {[%emt 0:00:30]} 11. Nb3 {[%emt 0:00:24]} Ne4 {[%emt 0:01:42]} (11... Nc5 $11) 12. Nxd4 $14 {[%emt 0:00:10]} Bf6 {[%emt 0:00:32]} 13. Ndc6 {[%emt 0:00:37]} Qe8 {[%emt 0:00:28]} 14. cxd5 {[%emt 0:00:25] White is more active.} exd5 {[%emt 0:00:11]} 15. Qxd5 {[%emt 0:00:07]} Bxe5 {[%emt 0:00:59]} ({Better is} 15... Nec5) 16. Qxe4 {[%emt 0:00:46]} ({Resist} 16. Bxe5 $6 Nac5 17. Bxe4 Bxc6 18. Qxc6 Qxe5 19. Qxa8 Rxa8 20. Bxa8 Qxb2 $14) 16... Bxc6 {[%emt 0:01:39]} 17. Rxc6 {[%emt 0:02:51]} ({Don't play} 17. Qxe5 $6 Qxe5 18. Bxe5 Bxg2 19. Kxg2 Rfe8 $14) (17. Qxc6 {seems wilder.} Bxf4 18. gxf4 Rd8 19. Qc4) 17... Bxf4 {[%emt 0:01:06]} 18. gxf4 {[%emt 0:00:32]} Qxe4 {[%emt 0:01:02]} 19. Bxe4 {[%emt 0:00:01]} Rfe8 {[%emt 0:00:18]} 20. Bf3 {[%emt 0:00:36]} Rad8 {[%emt 0:00:38]} 21. a3 {[%emt 0:00:12]} Rd2 {[%emt 0:00:51]} (21... Nc5 $16) 22. b4 $18 {[%emt 0:00:03]} Ra2 {[%emt 0:00:41] [#]} (22... Kf8 $142 23. Rfc1 g6) 23. Rc3 $1 {[%emt 0:00:04]} g6 {[%emt 0:00:35]} 24. Rd1 {[%emt 0:00:07] Strongly threatening Rd7.} Re7 {[%emt 0:00:27] Prevents Rd7.} 25. Rd8+ {[%emt 0:00:30]} Kg7 {[%emt 0:00:01]} 26. Rdc8 {[%emt 0:00:03] Prevents Nc7.} h5 {[%emt 0:01:25]} 27. Kg2 {[%emt 0:00:19]} Rd2 {[%emt 0:00:16]} 28. Ra8 {[%emt 0:02:22]} Rd6 {[%emt 0:01:56]} 29. e3 {[%emt 0:00:19][%cal Be2e3,Be3e4,Be4e5][%mdl 32]} Kf6 {[%emt 0:00:13]} 30. e4 {[%emt 0:01:43] [#] And now e5+ would win.} Kg7 {[%emt 0:00:09]} 31. e5 {[%emt 0:00:37]} Rd2 $2 {[%emt 0:00:07]} (31... Rd4 32. f5 gxf5 33. Bxh5 Nc7 34. Rg3+ (34. Rxa7 Rdd7 $18) 34... Kh7 35. Rxa7 Kh6) 32. Rcc8 {[%emt 0:00:19] White wants to mate with Rg8+. White is clearly winning.} f5 {[%emt 0:00:41]} 33. Rg8+ {[%emt 0:00:32]} Kh7 {[%emt 0:00:07]} 34. Rh8+ {[%emt 0:00:04]} Kg7 {[%emt 0:00:01]} 35. Rag8+ {[%emt 0:00:08]} Kf7 {[%emt 0:00:01]} 36. Rh7+ {[%emt 0:00:40]} Kxg8 {[%emt 0:00:07]} 37. Rxe7 {[%emt 0:00:01]} Rd3 {[%emt 0:00:17]} (37... Rc2 $142 38. Bd5+ Kf8 39. Rf7+ Ke8) 38. Be2 {[%emt 0:00:37] Weighted Error Value: White=0.08 (flawless) /Black=0.31} 1-0

[Event "European Corporate Championship 2022"]
[Site "Rotterdam"]
[Date "2022.06.19"]
[Round "6.11"]
[White "Malachi, Avraham"]
[Black "Jonkman, Harmen"]
[Result "0-1"]
[ECO "C65"]
[WhiteElo "1997"]
[BlackElo "2384"]
[Annotator "TA"]
[PlyCount "84"]
[EventDate "2022.06.18"]
[EventType "team-tourn"]
[EventCountry "NED"]
[SourceTitle "playchess.com"]
[Source "ChessBase"]
[SourceQuality "1"]
[TimeControl "900+5"]

{[%evp 9,84,-9,24,29,19,22,11,-25,-22,-17,-5,-13,0,0,2,0,0,0,0,-18,0,-28,0,-39,0,0,0,0,3,-11,9,0,0,0,0,0,0,0,0,0,0,0,10,0,122,0,4,6,16,60,25,0,0,0,0,-17,0,-17,-17,-17,-17,-199,-94,-103,-71,-79,-90,-378,-374,-458,-312,-314,-52,-517,-573,-1034,-959]} 1. e4 {[%emt 0:00:04]} e5 {[%emt 0:00:01]} 2. Nf3 {[%emt 0:00:02]} Nc6 {[%emt 0:00:00]} 3. Bb5 {[%emt 0:00:01]} Nf6 {[%emt 0:00:02]} 4. Qe2 {[%emt 0:00:01]} Bc5 {[%emt 0:00:50]} 5. O-O {[%emt 0:00:31]} Nd4 {[%emt 0:00:28]} 6. Nxd4 {[%emt 0:00:07] C65: Ruy Lopez: Berlin Defence (3...Nf6), unusual lines and 4 0-0 Bc5.} Bxd4 {[%emt 0:00:01]} 7. c3 {[%emt 0:00:10]} Bb6 {[%emt 0:00:03]} 8. d3 {[%emt 0:00:12][%cal Od3d4] The position is equal.} (8. d4 $5) 8... c6 {[%emt 0:00:06]} 9. Ba4 {[%emt 0:00:35] [#]} h6 $146 {[%emt 0:00:02]} ({Predecessor:} 9... O-O) 10. Be3 {[%emt 0:00:11]} d6 {[%emt 0:00:06]} 11. Nd2 {[%emt 0:00:21]} O-O {[%emt 0:00:05]} 12. Bxb6 {[%emt 0:00:30]} Qxb6 {[%emt 0:00:04]} 13. Nc4 {[%emt 0:01:22][%csl LRb6,LRd6]} Qc7 {[%emt 0:00:01] [#] Threatens to win with ...b5.} 14. Bb3 {[%emt 0:00:48]} Re8 {[%emt 0:00:06]} 15. Qf3 {[%emt 0:00:22]} d5 {[%emt 0:00:24]} 16. Ne3 {[%emt 0:00:13][%cal Re4d5]} dxe4 {[%emt 0:00:30]} (16... d4 $5 {[%cal Rd4e3]} 17. Nf5 Bxf5 18. Qxf5 Rad8 $11) 17. dxe4 {[%emt 0:00:03]} a5 {[%emt 0:00:13]} 18. a4 {[%emt 0:01:25]} Qb6 {[%emt 0:00:12]} 19. Ra3 {[%emt 0:00:01]} Qc5 {[%emt 0:01:22]} 20. Raa1 {[%emt 0:01:22]} Bd7 {[%emt 0:00:22]} 21. Ba2 {[%emt 0:00:28]} Rad8 {[%emt 0:00:37]} 22. Rad1 {[%emt 0:00:10]} Bc8 {[%emt 0:00:15]} 23. h3 {[%emt 0:00:20]} Kf8 {[%emt 0:00:30]} 24. Rxd8 {[%emt 0:00:35]} Rxd8 {[%emt 0:00:01]} 25. Rd1 {[%emt 0:00:02]} Rxd1+ {[%emt 0:00:10]} 26. Qxd1 {[%emt 0:00:06]} Ke7 {[%emt 0:00:06] Inhibits Qd8+.} (26... Qe7 $11 {remains equal.}) 27. Qd3 {[%emt 0:00:14]} ({White must play} 27. Qb3 $16) 27... b5 {[%emt 0:00:45]} 28. axb5 {[%emt 0:00:21]} cxb5 {[%emt 0:00:01]} 29. Nd5+ {[%emt 0:00:20]} Nxd5 {[%emt 0:00:03]} 30. Bxd5 $14 {[%emt 0:00:07][%mdl 4096] Endgame KQB-KQB} b4 {[%emt 0:00:13]} 31. cxb4 {[%emt 0:00:24]} axb4 {[%emt 0:00:05]} 32. Qg3 {[%emt 0:00:34]} Qc1+ {[%emt 0:02:28]} 33. Kh2 {[%emt 0:00:01]} Qf4 {[%emt 0:01:21]} 34. Qxf4 {[%emt 0:00:29]} exf4 $11 {[%emt 0:00:02] KB-KB} 35. f3 $2 {[%emt 0:00:19]} (35. g3 $11) 35... f6 {[%emt 0:00:50]} (35... Be6 $19 {Hoping for ...Bxd5.} 36. Bb7 Kd6) 36. g3 {[%emt 0:00:20]} fxg3+ {[%emt 0:01:54]} 37. Kxg3 {[%emt 0:00:02]} Kd6 {[%emt 0:00:09]} 38. f4 $2 {[%emt 0:00:28][%mdl 8192]} (38. h4 $17 {was necessary.}) 38... Kc5 $19 {[%emt 0:00:19]} 39. h4 {[%emt 0:00:30]} Kd4 {[%emt 0:00:02] aiming for ...f5.} 40. Kf3 {[%emt 0:00:20] [#]} Ba6 $2 {[%emt 0:01:33]} (40... f5 $1 $19 {Strongly threatening ...Ba6.} 41. Bc6 Kd3) 41. Bb3 $2 {[%emt 0:01:41][%mdl 8192]} ({White should try} 41. Bc6 $1 $15) 41... Bb7 {[%emt 0:00:13]} 42. Bc2 {[%emt 0:00:01]} f5 {[%emt 0:00:03] Weighted Error Value: White=0.68/Black=0.33} 0-1

[Event "European Corporate Championship 2022"]
[Site "Rotterdam"]
[Date "2022.06.19"]
[Round "6.14"]
[White "Dekker, Derk"]
[Black "Oudshoorn, Arres"]
[Result "0-1"]
[ECO "A45"]
[WhiteElo "1893"]
[BlackElo "2137"]
[Annotator "TA"]
[PlyCount "60"]
[EventDate "2022.06.18"]
[EventType "team-tourn"]
[EventCountry "NED"]
[SourceTitle "playchess.com"]
[Source "ChessBase"]
[SourceQuality "1"]
[TimeControl "900+5"]

{[%evp 9,60,30,30,0,0,-17,0,1,22,33,31,16,34,25,38,-14,-12,-36,-25,-105,-60,-65,-66,-85,-81,-74,-9,-27,-22,-106,-88,-101,-99,-95,-92,-195,-195,-231,-127,-150,-134,-167,-157,-191,-179,-184,-191,-185,-175,-279,-288,-253,-240]} 1. d4 {[%emt 0:00:01]} Nf6 {[%emt 0:00:01]} 2. Bg5 {[%emt 0:00:01]} e6 {[%emt 0:00:04]} 3. e4 {[%emt 0:00:01]} Be7 {[%emt 0:00:01]} 4. e5 {[%emt 0:00:01]} Ng8 {[%emt 0:00:07]} 5. Bxe7 {[%emt 0:00:13]} Nxe7 {[%emt 0:00:01]} 6. c4 {[%emt 0:00:18] A45: Trompowsky Attack.} d6 {[%emt 0:00:07]} 7. Nf3 {[%emt 0:00:27]} Nbc6 {[%emt 0:00:50] [#]} 8. Nc3 $146 {[%emt 0:00:25] The position is equal.} ({Predecessor:} 8. exd6 cxd6 9. d5 exd5 10. cxd5 Nb4 11. Qa4+ Bd7 12. Qxb4 Nxd5 13. Qd2 Nf6 14. Be2 {1-0 (29) Lucia Carpintero,O (1650)-Del Noval Nemeshazi,M (1411) Tres Cantos 2017}) 8... Ng6 {[%emt 0:00:52][%cal Rd6e5]} 9. exd6 {[%emt 0:00:43]} cxd6 {[%emt 0:00:09]} 10. Qd2 {[%emt 0:00:37]} a6 {[%emt 0:01:46]} 11. Bd3 {[%emt 0:00:46]} e5 {[%emt 0:01:04]} 12. d5 {[%emt 0:04:11]} (12. dxe5 $14 dxe5 13. O-O) 12... Nce7 $1 $11 {[%emt 0:00:13]} 13. O-O-O {[%emt 0:02:38]} Bg4 {[%emt 0:02:06][%cal Bc8g4,Bg4h5,Bh5g6][%mdl 32]} 14. Be2 {[%emt 0:01:53]} (14. Ne2 $11 {remains equal.}) 14... Nf4 {[%emt 0:00:17]} 15. h3 {[%emt 0:00:36]} Bh5 {[%emt 0:01:06]} 16. g3 {[%emt 0:00:40]} Nxe2+ {[%emt 0:00:08]} 17. Qxe2 {[%emt 0:00:01]} Rc8 {[%emt 0:00:12]} (17... Bxf3 $17 18. Qxf3 Rc8) 18. g4 {[%emt 0:00:07]} Bg6 {[%emt 0:00:02][%cal Ob7b5]} 19. Nh4 {[%emt 0:00:09]} (19. h4 $1 $11 h6 20. a4 (20. h5 Bh7 $11)) 19... Qc7 $17 {[%emt 0:00:17]} 20. f4 {[%emt 0:00:18] [#]} f6 {[%emt 0:01:49]} ({Much weaker is} 20... Qxc4 $6 21. Qxc4 Rxc4 22. f5 $11) ({Don't play} 20... exf4 21. Rhe1 $14) 21. fxe5 {[%emt 0:00:28]} fxe5 {[%emt 0:00:03]} 22. Rhf1 {[%emt 0:00:19]} (22. Nxg6 $17 {might work better.} Nxg6 23. Rd4) 22... Qxc4 $19 {[%emt 0:01:43]} 23. Qf3 {[%emt 0:00:11] [#]} Qe4 {[%emt 0:01:14]} (23... Be4 $1 $19 {[%cal Re4f3]} 24. Qf7+ Kd8) 24. Nxg6 {[%emt 0:01:18] Qf7+ would kill now.} Qxg6 {[%emt 0:00:01]} 25. Kd2 {[%emt 0:00:21]} Rc4 {[%emt 0:00:12] Against Qe4} 26. Rde1 {[%emt 0:00:16]} Rf4 {[%emt 0:00:19] Chess con chili.} 27. Qe3 {[%emt 0:00:08]} O-O {[%emt 0:00:03]} 28. Rxf4 {[%emt 0:00:08]} Rxf4 {[%emt 0:00:03]} 29. Qe2 {[%emt 0:00:09]} (29. Kc1 $142) 29... Qf7 {[%emt 0:00:18]} ({Wrong is} 29... Rd4+ $2 30. Kc1 $19) 30. Kc1 {[%emt 0:00:01]} Nxd5 {[%emt 0:00:06] Weighted Error Value: White=0.32/Black=0.16 (very precise)} 0-1